[Event "January 9 Late 2024"]
[Site "https://www.chess.com"]
[Date "2024.01.09"]
[Round "3"]
[White "Leiva, Gianmarco"]
[Black "Fedoseev, Vladimir"]
[Result "0-1"]
[Board "54"]
[TimeControl "180+1"]
[WhiteFideId "3804399"]
[BlackFideId "24130737"]
[WhiteElo "2701"]
[BlackElo "3037"]
[WhiteTeam "PER"]
[BlackTeam "SLO"]
[WhiteClock "0:00:00"]
[BlackClock "0:00:12"]

1. d4 {[%clk 0:03:00]}  d5 {[%clk 0:02:57]} 2. Nf3 {[%clk 0:03:01]}  Nf6 {[%clk 0:02:56]} 3. Bf4 {[%clk 0:02:59]}  c5 {[%clk 0:02:56]} 4. e3 {[%clk 0:02:59]}  Nc6 {[%clk 0:02:56]} 5. Nbd2 {[%clk 0:02:59]}  cxd4 {[%clk 0:02:56]} 6. exd4 {[%clk 0:02:58]}  Bg4 {[%clk 0:02:56]} 7. c3 {[%clk 0:02:45]}  Qc8 {[%clk 0:02:48]} 8. h3 {[%clk 0:02:31]}  Bf5 {[%clk 0:02:43]} 9. Nh4 {[%clk 0:02:26]}  Bd7 {[%clk 0:02:41]} 10. Bd3 {[%clk 0:02:22]}  h6 {[%clk 0:02:38]} 11. Bg3 {[%clk 0:02:21]}  e6 {[%clk 0:02:27]} 12. O-O {[%clk 0:02:17]}  Be7 {[%clk 0:02:26]} 13. Nhf3 {[%clk 0:02:17]}  O-O {[%clk 0:02:25]} 14. Ne5 {[%clk 0:02:16]}  Nxe5 {[%clk 0:02:24]} 15. dxe5 {[%clk 0:02:09]}  Ne8 {[%clk 0:02:21]} 16. Qh5 {[%clk 0:02:06]}  Bg5 {[%clk 0:01:57]} 17. Nf3 {[%clk 0:02:00]}  Be7 {[%clk 0:01:44]} 18. Bf4 {[%clk 0:01:53]}  f5 {[%clk 0:01:44]} 19. exf6 {[%clk 0:01:45]}  Nxf6 {[%clk 0:01:44]} 20. Qe5 {[%clk 0:01:38]}  Ne4 {[%clk 0:01:32]} 21. Bxe4 {[%clk 0:01:27]}  dxe4 {[%clk 0:01:31]} 22. Nd4 {[%clk 0:01:26]}  Qc5 {[%clk 0:01:16]} 23. Qxe4 {[%clk 0:01:23]}  Rxf4 {[%clk 0:01:12]} 24. Qxf4 {[%clk 0:01:19]}  e5 {[%clk 0:01:13]} 25. Qe4 {[%clk 0:01:07]}  exd4 {[%clk 0:01:11]} 26. cxd4 {[%clk 0:00:59]}  Qd6 {[%clk 0:01:09]} 27. Qxb7 {[%clk 0:00:54]}  Bc6 {[%clk 0:01:09]} 28. Qb3+ {[%clk 0:00:53]}  Bd5 {[%clk 0:01:10]} 29. Qd3 {[%clk 0:00:50]}  Bf6 {[%clk 0:01:05]} 30. b3 {[%clk 0:00:48]}  Rd8 {[%clk 0:01:05]} 31. Rad1 {[%clk 0:00:47]}  Qb6 {[%clk 0:01:05]} 32. Rfe1 {[%clk 0:00:46]}  Bf7 {[%clk 0:01:05]} 33. Qf3 {[%clk 0:00:43]}  Bxd4 {[%clk 0:01:03]} 34. Kh1 {[%clk 0:00:32]}  Rd6 {[%clk 0:00:59]} 35. Re7 {[%clk 0:00:31]}  Bg6 {[%clk 0:00:43]} 36. Qa8+ {[%clk 0:00:23]}  Kh7 {[%clk 0:00:41]} 37. Rb7 {[%clk 0:00:17]}  Qc6 {[%clk 0:00:26]} 38. Rb8 {[%clk 0:00:17]}  Qxa8 {[%clk 0:00:24]} 39. Rxa8 {[%clk 0:00:17]}  a6 {[%clk 0:00:14]} 40. Rc8 {[%clk 0:00:15]}  Bf7 {[%clk 0:00:11]} 41. Rc7 {[%clk 0:00:13]}  Kg8 {[%clk 0:00:11]} 42. Rc8+ {[%clk 0:00:13]}  Kh7 {[%clk 0:00:12]} 43. Rc7 {[%clk 0:00:12]}  Kg6 {[%clk 0:00:12]} 44. Rc2 {[%clk 0:00:13]}  Kf6 {[%clk 0:00:08]} 45. Re2 {[%clk 0:00:07]}  Bc5 {[%clk 0:00:06]} 46. Rxd6+ {[%clk 0:00:07]}  Bxd6 {[%clk 0:00:07]} 47. Rd2 {[%clk 0:00:05]}  Bb4 {[%clk 0:00:08]} 48. Rd4 {[%clk 0:00:05]}  a5 {[%clk 0:00:09]} 49. Rf4+ {[%clk 0:00:05]}  Ke7 {[%clk 0:00:09]} 50. Re4+ {[%clk 0:00:05]}  Kd6 {[%clk 0:00:09]} 51. f3 {[%clk 0:00:06]}  g5 {[%clk 0:00:09]} 52. h4 {[%clk 0:00:06]}  Bg6 {[%clk 0:00:09]} 53. Rd4+ {[%clk 0:00:05]}  Kc5 {[%clk 0:00:09]} 54. Rc4+ {[%clk 0:00:05]}  Kb6 {[%clk 0:00:09]} 55. hxg5 {[%clk 0:00:06]}  hxg5 {[%clk 0:00:09]} 56. Rg4 {[%clk 0:00:06]}  Bb1 {[%clk 0:00:10]} 57. Rxg5 {[%clk 0:00:02]}  Bxa2 {[%clk 0:00:10]} 58. Rg6+ {[%clk 0:00:02]}  Kc5 {[%clk 0:00:11]} 59. Rg5+ {[%clk 0:00:02]}  Kd4 {[%clk 0:00:11]} 60. Rg4+ {[%clk 0:00:00]}  Kc3 {[%clk 0:00:12]} 0-1

[Event "January 9 Late 2024"]
[Site "https://www.chess.com"]
[Date "2024.01.09"]
[Round "3"]
[White "Yoo, Christopher Woojin"]
[Black "Schmakel, Sam"]
[Result "1-0"]
[Board "55"]
[TimeControl "180+1"]
[WhiteFideId "30909694"]
[BlackFideId "2039311"]
[WhiteElo "2973"]
[BlackElo "2697"]
[WhiteTeam "USA"]
[BlackTeam "USA"]
[WhiteClock "0:00:03"]
[BlackClock "0:00:00"]

1. e4 {[%clk 0:02:50]}  e5 {[%clk 0:02:58]} 2. Nf3 {[%clk 0:02:49]}  Nc6 {[%clk 0:02:57]} 3. Bb5 {[%clk 0:02:48]}  a6 {[%clk 0:02:56]} 4. Ba4 {[%clk 0:02:40]}  Nf6 {[%clk 0:02:53]} 5. O-O {[%clk 0:02:22]}  Bc5 {[%clk 0:02:52]} 6. c3 {[%clk 0:02:09]}  b5 {[%clk 0:02:50]} 7. Bc2 {[%clk 0:02:06]}  d5 {[%clk 0:02:47]} 8. d4 {[%clk 0:02:05]}  exd4 {[%clk 0:01:45]} 9. e5 {[%clk 0:01:56]}  Ne4 {[%clk 0:01:44]} 10. cxd4 {[%clk 0:01:56]}  Bb6 {[%clk 0:01:44]} 11. Nc3 {[%clk 0:01:54]}  Bf5 {[%clk 0:01:41]} 12. Be3 {[%clk 0:01:42]}  O-O {[%clk 0:01:22]} 13. Rc1 {[%clk 0:01:37]}  Nxc3 {[%clk 0:00:58]} 14. bxc3 {[%clk 0:01:25]}  Qd7 {[%clk 0:00:58]} 15. Re1 {[%clk 0:01:02]}  Ne7 {[%clk 0:00:52]} 16. Bg5 {[%clk 0:00:42]}  Bxc2 {[%clk 0:00:49]} 17. Qxc2 {[%clk 0:00:43]}  h6 {[%clk 0:00:39]} 18. Bxe7 {[%clk 0:00:34]}  Qxe7 {[%clk 0:00:40]} 19. g3 {[%clk 0:00:34]}  Qe6 {[%clk 0:00:26]} 20. Nh4 {[%clk 0:00:33]}  c5 {[%clk 0:00:25]} 21. Nf5 {[%clk 0:00:26]}  cxd4 {[%clk 0:00:20]} 22. cxd4 {[%clk 0:00:20]}  g6 {[%clk 0:00:20]} 23. Nxh6+ {[%clk 0:00:12]}  Kg7 {[%clk 0:00:20]} 24. Qd2 {[%clk 0:00:11]}  Rh8 {[%clk 0:00:14]} 25. Nxf7 {[%clk 0:00:11]}  Kxf7 {[%clk 0:00:09]} 26. h4 {[%clk 0:00:03]}  Rac8 {[%clk 0:00:06]} 27. Rc3 {[%clk 0:00:02]}  Ba5 {[%clk 0:00:02]} 28. Rf3+ {[%clk 0:00:02]}  Kg7 {[%clk 0:00:01]} 29. Qxa5 {[%clk 0:00:03]}  Rhf8 {[%clk 0:00:01]} 30. Rxf8 {[%clk 0:00:03]}  Rxf8 {[%clk 0:00:01]} 31. Qd2 {[%clk 0:00:03]}  Rc8 {[%clk 0:00:01]} 32. Rc1 {[%clk 0:00:03]}  Rxc1+ {[%clk 0:00:01]} 33. Qxc1 {[%clk 0:00:03]}  Qg4 {[%clk 0:00:02]} 34. Qe3 {[%clk 0:00:03]}  Qd1+ {[%clk 0:00:02]} 35. Kh2 {[%clk 0:00:03]}  Qc2 {[%clk 0:00:02]} 36. e6 {[%clk 0:00:04]}  Kg8 {[%clk 0:00:03]} 37. Qf3 {[%clk 0:00:03]}  Qc7 {[%clk 0:00:00]} 38. Qxd5 {[%clk 0:00:03]} 1-0

[Event "January 9 Late 2024"]
[Site "https://www.chess.com"]
[Date "2024.01.09"]
[Round "3"]
[White "Sowa, Ryan"]
[Black "Ghasi, Ameet K"]
[Result "1-0"]
[Board "61"]
[TimeControl "180+1"]
[WhiteFideId "30901693"]
[BlackFideId "409200"]
[WhiteElo "2575"]
[BlackElo "2769"]
[WhiteTeam "USA"]
[BlackTeam "ENG"]
[WhiteClock "0:00:26"]
[BlackClock "0:00:00"]

1. Nf3 {[%clk 0:03:00]}  Nf6 {[%clk 0:02:59]} 2. b3 {[%clk 0:03:00]}  g6 {[%clk 0:02:52]} 3. Bb2 {[%clk 0:03:01]}  Bg7 {[%clk 0:02:52]} 4. g3 {[%clk 0:03:02]}  O-O {[%clk 0:02:53]} 5. Bg2 {[%clk 0:03:02]}  d5 {[%clk 0:02:52]} 6. O-O {[%clk 0:03:02]}  c5 {[%clk 0:02:50]} 7. e3 {[%clk 0:03:00]}  b6 {[%clk 0:02:48]} 8. c4 {[%clk 0:02:57]}  Bb7 {[%clk 0:02:47]} 9. Ne5 {[%clk 0:02:56]}  Nbd7 {[%clk 0:02:46]} 10. d4 {[%clk 0:02:57]}  cxd4 {[%clk 0:02:43]} 11. exd4 {[%clk 0:02:57]}  Rc8 {[%clk 0:02:41]} 12. Nc3 {[%clk 0:02:56]}  e6 {[%clk 0:02:40]} 13. cxd5 {[%clk 0:02:49]}  Nxd5 {[%clk 0:02:30]} 14. Nxd5 {[%clk 0:02:49]}  Bxd5 {[%clk 0:02:30]} 15. Bxd5 {[%clk 0:02:49]}  exd5 {[%clk 0:02:31]} 16. Qf3 {[%clk 0:02:48]}  Nf6 {[%clk 0:02:29]} 17. Rac1 {[%clk 0:02:46]}  Qe7 {[%clk 0:02:15]} 18. Rfe1 {[%clk 0:02:29]}  Qb7 {[%clk 0:01:46]} 19. Rxc8 {[%clk 0:02:19]}  Rxc8 {[%clk 0:01:44]} 20. Rc1 {[%clk 0:02:16]}  Rxc1+ {[%clk 0:01:38]} 21. Bxc1 {[%clk 0:02:17]}  Ne4 {[%clk 0:01:38]} 22. Be3 {[%clk 0:02:11]}  Qc7 {[%clk 0:01:26]} 23. Nd3 {[%clk 0:01:53]}  Qc2 {[%clk 0:00:30]} 24. Nf4 {[%clk 0:01:53]}  Qc6 {[%clk 0:00:25]} 25. h4 {[%clk 0:01:53]}  h6 {[%clk 0:00:25]} 26. Nd3 {[%clk 0:01:46]}  a5 {[%clk 0:00:25]} 27. Ne5 {[%clk 0:01:46]}  Qe6 {[%clk 0:00:24]} 28. Qf4 {[%clk 0:01:35]}  g5 {[%clk 0:00:17]} 29. hxg5 {[%clk 0:01:34]}  hxg5 {[%clk 0:00:18]} 30. Qf3 {[%clk 0:01:31]}  f5 {[%clk 0:00:14]} 31. Qh5 {[%clk 0:01:28]}  Bxe5 {[%clk 0:00:09]} 32. dxe5 {[%clk 0:01:28]}  Qxe5 {[%clk 0:00:09]} 33. Bxg5 {[%clk 0:01:25]}  Qg7 {[%clk 0:00:04]} 34. Be3 {[%clk 0:01:16]}  d4 {[%clk 0:00:03]} 35. Qxf5 {[%clk 0:01:11]}  Nxg3 {[%clk 0:00:02]} 36. Qc8+ {[%clk 0:01:02]}  Kh7 {[%clk 0:00:03]} 37. Qh3+ {[%clk 0:00:54]}  Nh5+ {[%clk 0:00:03]} 38. Kf1 {[%clk 0:00:54]}  dxe3 {[%clk 0:00:02]} 39. Qxh5+ {[%clk 0:00:55]}  Kg8 {[%clk 0:00:02]} 40. Qe8+ {[%clk 0:00:55]}  Kh7 {[%clk 0:00:03]} 41. Qxe3 {[%clk 0:00:28]}  Qa1+ {[%clk 0:00:02]} 42. Kg2 {[%clk 0:00:29]}  Qxa2 {[%clk 0:00:03]} 43. Qxb6 {[%clk 0:00:29]}  Qc2 {[%clk 0:00:02]} 44. Qe3 {[%clk 0:00:29]}  Qg6+ {[%clk 0:00:02]} 45. Kf1 {[%clk 0:00:27]}  Qb6 {[%clk 0:00:00]} 46. Qxb6 {[%clk 0:00:26]} 1-0

[Event "January 9 Late 2024"]
[Site "https://www.chess.com"]
[Date "2024.01.09"]
[Round "3"]
[White "Kokoszczynski, Jan"]
[Black "Kozak, Antoni"]
[Result "1-0"]
[Board "62"]
[TimeControl "180+1"]
[WhiteFideId "1174460"]
[BlackFideId "21832030"]
[WhiteElo "2567"]
[BlackElo "2763"]
[WhiteTeam "POL"]
[BlackTeam "POL"]
[WhiteClock "0:00:06"]
[BlackClock "0:00:08"]

1. d4 {[%clk 0:03:00]}  g6 {[%clk 0:02:21]} 2. e4 {[%clk 0:02:59]}  b6 {[%clk 0:02:21]} 3. Bd3 {[%clk 0:02:58]}  Bg7 {[%clk 0:02:20]} 4. Nf3 {[%clk 0:02:58]}  c5 {[%clk 0:02:20]} 5. c3 {[%clk 0:02:56]}  Nf6 {[%clk 0:02:18]} 6. O-O {[%clk 0:02:54]}  O-O {[%clk 0:02:17]} 7. Re1 {[%clk 0:02:52]}  Bb7 {[%clk 0:02:17]} 8. Nbd2 {[%clk 0:02:50]}  cxd4 {[%clk 0:02:15]} 9. cxd4 {[%clk 0:02:50]}  Nc6 {[%clk 0:02:16]} 10. Nf1 {[%clk 0:02:49]}  Rc8 {[%clk 0:02:13]} 11. Ng3 {[%clk 0:02:43]}  Nb4 {[%clk 0:02:10]} 12. Bb1 {[%clk 0:02:43]}  Qc7 {[%clk 0:02:10]} 13. Bg5 {[%clk 0:01:53]}  Nc2 {[%clk 0:02:04]} 14. Bxc2 {[%clk 0:01:54]}  Qxc2 {[%clk 0:02:05]} 15. Re2 {[%clk 0:01:55]}  Qxd1+ {[%clk 0:01:54]} 16. Rxd1 {[%clk 0:01:56]}  h6 {[%clk 0:01:52]} 17. Bxf6 {[%clk 0:01:38]}  Bxf6 {[%clk 0:01:52]} 18. e5 {[%clk 0:01:39]}  Bg7 {[%clk 0:01:47]} 19. h4 {[%clk 0:01:40]}  Bd5 {[%clk 0:01:37]} 20. a3 {[%clk 0:01:36]}  Bb3 {[%clk 0:01:34]} 21. Rde1 {[%clk 0:01:30]}  Bc4 {[%clk 0:01:32]} 22. Rd2 {[%clk 0:01:29]}  Rc7 {[%clk 0:01:32]} 23. h5 {[%clk 0:01:29]}  Bd5 {[%clk 0:01:32]} 24. Ne4 {[%clk 0:01:12]}  Rfc8 {[%clk 0:01:20]} 25. Nc3 {[%clk 0:01:09]}  Bc4 {[%clk 0:01:16]} 26. d5 {[%clk 0:01:02]}  Ba6 {[%clk 0:00:57]} 27. hxg6 {[%clk 0:00:41]}  fxg6 {[%clk 0:00:57]} 28. d6 {[%clk 0:00:41]}  exd6 {[%clk 0:00:56]} 29. Rxd6 {[%clk 0:00:42]}  Kh7 {[%clk 0:00:48]} 30. Red1 {[%clk 0:00:43]}  g5 {[%clk 0:00:34]} 31. Rxd7 {[%clk 0:00:43]}  Bc4 {[%clk 0:00:29]} 32. Ne4 {[%clk 0:00:24]}  Bb3 {[%clk 0:00:22]} 33. R1d6 {[%clk 0:00:20]}  Rxd7 {[%clk 0:00:18]} 34. Rxd7 {[%clk 0:00:20]}  Rc1+ {[%clk 0:00:19]} 35. Kh2 {[%clk 0:00:20]}  Kg6 {[%clk 0:00:20]} 36. Rd6+ {[%clk 0:00:11]}  Kf7 {[%clk 0:00:16]} 37. Nf6 {[%clk 0:00:07]}  Bf8 {[%clk 0:00:11]} 38. Rd7+ {[%clk 0:00:07]}  Ke6 {[%clk 0:00:11]} 39. Rxa7 {[%clk 0:00:07]}  g4 {[%clk 0:00:12]} 40. Nd4+ {[%clk 0:00:05]}  Kxe5 {[%clk 0:00:12]} 41. Nxb3 {[%clk 0:00:06]}  Kxf6 {[%clk 0:00:08]} 42. Nxc1 {[%clk 0:00:06]} 1-0

[Event "January 9 Late 2024"]
[Site "https://www.chess.com"]
[Date "2024.01.09"]
[Round "3"]
[White "Cruz Mendez, Jean Marco"]
[Black "Bardyk, Artem"]
[Result "1/2-1/2"]
[Board "63"]
[TimeControl "180+1"]
[WhiteFideId "3526402"]
[BlackFideId "34349979"]
[WhiteElo "2559"]
[BlackElo "2757"]
[WhiteTeam "CUB"]
[BlackTeam "RUS"]
[WhiteClock "0:00:08"]
[BlackClock "0:00:02"]

1. e4 {[%clk 0:03:00]}  e5 {[%clk 0:02:58]} 2. Nf3 {[%clk 0:03:01]}  Nc6 {[%clk 0:02:57]} 3. Bc4 {[%clk 0:03:01]}  Bc5 {[%clk 0:02:52]} 4. c3 {[%clk 0:03:01]}  Nf6 {[%clk 0:02:50]} 5. d3 {[%clk 0:03:01]}  d6 {[%clk 0:02:47]} 6. h3 {[%clk 0:03:00]}  O-O {[%clk 0:02:44]} 7. O-O {[%clk 0:02:58]}  a6 {[%clk 0:02:43]} 8. Bb3 {[%clk 0:02:57]}  Ba7 {[%clk 0:02:43]} 9. Nbd2 {[%clk 0:02:55]}  Be6 {[%clk 0:02:43]} 10. Bc2 {[%clk 0:02:55]}  d5 {[%clk 0:02:42]} 11. exd5 {[%clk 0:02:53]}  Bxd5 {[%clk 0:02:41]} 12. Re1 {[%clk 0:02:53]}  Re8 {[%clk 0:02:41]} 13. Nf1 {[%clk 0:02:51]}  e4 {[%clk 0:02:37]} 14. dxe4 {[%clk 0:02:37]}  Bxe4 {[%clk 0:02:38]} 15. Qxd8 {[%clk 0:02:27]}  Raxd8 {[%clk 0:02:37]} 16. Bxe4 {[%clk 0:02:27]}  Nxe4 {[%clk 0:02:36]} 17. Be3 {[%clk 0:02:28]}  Bxe3 {[%clk 0:02:31]} 18. Nxe3 {[%clk 0:02:29]}  Nd2 {[%clk 0:02:32]} 19. Nxd2 {[%clk 0:02:06]}  Rxd2 {[%clk 0:02:33]} 20. Rab1 {[%clk 0:02:06]}  f6 {[%clk 0:02:27]} 21. Red1 {[%clk 0:02:05]}  Red8 {[%clk 0:02:27]} 22. Kf1 {[%clk 0:02:02]}  Kf7 {[%clk 0:02:11]} 23. Ke1 {[%clk 0:01:58]}  R2d3 {[%clk 0:02:08]} 24. Ke2 {[%clk 0:01:56]}  Ne5 {[%clk 0:01:59]} 25. Rxd3 {[%clk 0:01:49]}  Nxd3 {[%clk 0:02:00]} 26. g3 {[%clk 0:01:50]}  Nc5 {[%clk 0:01:53]} 27. Rd1 {[%clk 0:01:45]}  Rxd1 {[%clk 0:01:52]} 28. Nxd1 {[%clk 0:01:44]}  Ke6 {[%clk 0:01:51]} 29. Ne3 {[%clk 0:01:38]}  Na4 {[%clk 0:01:50]} 30. Nd1 {[%clk 0:01:34]}  Kd5 {[%clk 0:01:48]} 31. b3 {[%clk 0:01:30]}  Nc5 {[%clk 0:01:46]} 32. Ke3 {[%clk 0:01:29]}  g5 {[%clk 0:01:18]} 33. c4+ {[%clk 0:01:24]}  Ke5 {[%clk 0:01:17]} 34. Nc3 {[%clk 0:01:25]}  c6 {[%clk 0:01:14]} 35. Ne2 {[%clk 0:01:20]}  Ne6 {[%clk 0:01:10]} 36. f4+ {[%clk 0:01:16]}  gxf4+ {[%clk 0:01:11]} 37. gxf4+ {[%clk 0:01:17]}  Kd6 {[%clk 0:01:11]} 38. Ke4 {[%clk 0:01:17]}  Ke7 {[%clk 0:01:08]} 39. Ng3 {[%clk 0:01:11]}  Nc5+ {[%clk 0:01:04]} 40. Kf5 {[%clk 0:00:24]}  b6 {[%clk 0:00:48]} 41. Nh5 {[%clk 0:00:19]}  Nd7 {[%clk 0:00:48]} 42. Ng3 {[%clk 0:00:19]}  Nc5 {[%clk 0:00:45]} 43. Nh5 {[%clk 0:00:19]}  Nd7 {[%clk 0:00:46]} 44. Ng3 {[%clk 0:00:20]}  b5 {[%clk 0:00:45]} 45. Ne4 {[%clk 0:00:18]}  bxc4 {[%clk 0:00:43]} 46. bxc4 {[%clk 0:00:19]}  Nb6 {[%clk 0:00:43]} 47. c5 {[%clk 0:00:17]}  Nd5 {[%clk 0:00:42]} 48. Kg4 {[%clk 0:00:16]}  Nb4 {[%clk 0:00:34]} 49. Kf5 {[%clk 0:00:14]}  Nxa2 {[%clk 0:00:31]} 50. Nxf6 {[%clk 0:00:15]}  Nc3 {[%clk 0:00:28]} 51. Nxh7 {[%clk 0:00:11]}  a5 {[%clk 0:00:28]} 52. Ke5 {[%clk 0:00:09]}  a4 {[%clk 0:00:18]} 53. f5 {[%clk 0:00:05]}  a3 {[%clk 0:00:16]} 54. f6+ {[%clk 0:00:05]}  Kf7 {[%clk 0:00:06]} 55. Ng5+ {[%clk 0:00:05]}  Kg6 {[%clk 0:00:04]} 56. f7 {[%clk 0:00:06]}  Kg7 {[%clk 0:00:04]} 57. Ke6 {[%clk 0:00:06]}  a2 {[%clk 0:00:04]} 58. Nh7 {[%clk 0:00:07]}  Kxh7 {[%clk 0:00:03]} 59. f8=Q {[%clk 0:00:07]}  a1=Q {[%clk 0:00:04]} 60. Qf7+ {[%clk 0:00:07]}  Kh6 {[%clk 0:00:03]} 61. Qf6+ {[%clk 0:00:08]}  Kh5 {[%clk 0:00:04]} 62. Qf5+ {[%clk 0:00:08]}  Kh6 {[%clk 0:00:04]} 63. Qf6+ {[%clk 0:00:08]}  Kh7 {[%clk 0:00:02]} 64. Qf7+ {[%clk 0:00:08]}  Kh6 {[%clk 0:00:02]} 65. Qf6+ {[%clk 0:00:08]} 1/2-1/2

[Event "January 9 Late 2024"]
[Site "https://www.chess.com"]
[Date "2024.01.09"]
[Round "3"]
[White "Schnaider, Ilan"]
[Black "Martin Barcelo, Carles"]
[Result "0-1"]
[Board "64"]
[TimeControl "180+1"]
[WhiteFideId "169013"]
[BlackFideId "24561444"]
[WhiteElo "2739"]
[BlackElo "2524"]
[WhiteTeam "ARG"]
[BlackTeam "ESP"]
[WhiteClock "0:00:07"]
[BlackClock "0:00:32"]

1. e4 {[%clk 0:02:57]}  e6 {[%clk 0:03:00]} 2. d4 {[%clk 0:02:56]}  d5 {[%clk 0:03:00]} 3. Nd2 {[%clk 0:02:57]}  c5 {[%clk 0:02:57]} 4. Ngf3 {[%clk 0:02:57]}  cxd4 {[%clk 0:02:56]} 5. Nxd4 {[%clk 0:02:57]}  Nf6 {[%clk 0:02:57]} 6. exd5 {[%clk 0:02:56]}  Nxd5 {[%clk 0:02:51]} 7. N2f3 {[%clk 0:02:54]}  Bb4+ {[%clk 0:02:51]} 8. Bd2 {[%clk 0:02:53]}  O-O {[%clk 0:02:49]} 9. Bd3 {[%clk 0:02:42]}  Nd7 {[%clk 0:02:15]} 10. O-O {[%clk 0:02:37]}  Bxd2 {[%clk 0:02:12]} 11. Qxd2 {[%clk 0:02:36]}  Nc5 {[%clk 0:02:13]} 12. Bc4 {[%clk 0:02:31]}  a6 {[%clk 0:02:03]} 13. a4 {[%clk 0:02:27]}  b6 {[%clk 0:01:59]} 14. b4 {[%clk 0:02:17]}  Ne4 {[%clk 0:01:58]} 15. Qd3 {[%clk 0:02:10]}  Nef6 {[%clk 0:01:50]} 16. Ne5 {[%clk 0:02:08]}  Bb7 {[%clk 0:01:49]} 17. Rab1 {[%clk 0:02:03]}  Nf4 {[%clk 0:01:41]} 18. Qc3 {[%clk 0:00:39]}  Rc8 {[%clk 0:01:03]} 19. Rfd1 {[%clk 0:00:21]}  Qc7 {[%clk 0:01:03]} 20. f3 {[%clk 0:00:17]}  Qxe5 {[%clk 0:01:02]} 21. Qb3 {[%clk 0:00:06]}  Rfd8 {[%clk 0:00:44]} 22. c3 {[%clk 0:00:06]}  Qe3+ {[%clk 0:00:43]} 23. Kh1 {[%clk 0:00:06]}  Qe5 {[%clk 0:00:36]} 24. Re1 {[%clk 0:00:05]}  Qg5 {[%clk 0:00:36]} 25. Rb2 {[%clk 0:00:04]}  N6h5 {[%clk 0:00:30]} 26. Kg1 {[%clk 0:00:02]}  Nh3+ {[%clk 0:00:26]} 27. Kf1 {[%clk 0:00:01]}  N3f4 {[%clk 0:00:25]} 28. Kg1 {[%clk 0:00:01]}  h6 {[%clk 0:00:23]} 29. Rf2 {[%clk 0:00:02]}  Nh3+ {[%clk 0:00:23]} 30. Kf1 {[%clk 0:00:01]}  Nxf2 {[%clk 0:00:24]} 31. Kxf2 {[%clk 0:00:02]}  Nf4 {[%clk 0:00:24]} 32. g3 {[%clk 0:00:02]}  Nd5 {[%clk 0:00:23]} 33. Re2 {[%clk 0:00:01]}  Qf6 {[%clk 0:00:21]} 34. f4 {[%clk 0:00:01]}  Nxc3 {[%clk 0:00:21]} 35. Nf3 {[%clk 0:00:01]}  Nxe2 {[%clk 0:00:21]} 36. Bxe2 {[%clk 0:00:02]}  Bxf3 {[%clk 0:00:21]} 37. Bxf3 {[%clk 0:00:02]}  Qc3 {[%clk 0:00:21]} 38. Qb1 {[%clk 0:00:02]}  Qc2+ {[%clk 0:00:21]} 39. Qxc2 {[%clk 0:00:02]}  Rxc2+ {[%clk 0:00:22]} 40. Ke3 {[%clk 0:00:03]}  Rc3+ {[%clk 0:00:22]} 41. Ke4 {[%clk 0:00:03]}  Rxf3 {[%clk 0:00:23]} 42. Kxf3 {[%clk 0:00:04]}  Rd4 {[%clk 0:00:23]} 43. b5 {[%clk 0:00:05]}  axb5 {[%clk 0:00:24]} 44. axb5 {[%clk 0:00:05]}  Rb4 {[%clk 0:00:25]} 45. Kg4 {[%clk 0:00:05]}  Rxb5 {[%clk 0:00:25]} 46. f5 {[%clk 0:00:06]}  Rxf5 {[%clk 0:00:26]} 47. h3 {[%clk 0:00:06]}  b5 {[%clk 0:00:26]} 48. Kh4 {[%clk 0:00:07]}  Rc5 {[%clk 0:00:27]} 49. g4 {[%clk 0:00:08]}  b4 {[%clk 0:00:27]} 50. g5 {[%clk 0:00:08]}  hxg5+ {[%clk 0:00:28]} 51. Kh5 {[%clk 0:00:09]}  b3 {[%clk 0:00:28]} 52. h4 {[%clk 0:00:10]}  gxh4+ {[%clk 0:00:29]} 53. Kg4 {[%clk 0:00:10]}  b2 {[%clk 0:00:29]} 54. Kf4 {[%clk 0:00:10]}  b1=Q {[%clk 0:00:29]} 55. Kf3 {[%clk 0:00:10]}  Qb4 {[%clk 0:00:29]} 56. Ke2 {[%clk 0:00:08]}  Rc3 {[%clk 0:00:29]} 57. Kd1 {[%clk 0:00:09]}  Qb2 {[%clk 0:00:28]} 58. Ke1 {[%clk 0:00:09]}  Rc2 {[%clk 0:00:27]} 59. Kd1 {[%clk 0:00:04]}  g6 {[%clk 0:00:27]} 60. Ke1 {[%clk 0:00:02]}  g5 {[%clk 0:00:28]} 61. Kd1 {[%clk 0:00:02]}  f5 {[%clk 0:00:28]} 62. Ke1 {[%clk 0:00:03]}  e5 {[%clk 0:00:29]} 63. Kf1 {[%clk 0:00:04]}  e4 {[%clk 0:00:30]} 64. Kg1 {[%clk 0:00:05]}  f4 {[%clk 0:00:31]} 65. Kh1 {[%clk 0:00:06]}  g4 {[%clk 0:00:31]} 66. Kg1 {[%clk 0:00:07]}  h3 {[%clk 0:00:32]} 67. Kf1 {[%clk 0:00:07]}  g3 {[%clk 0:00:32]} 0-1

[Event "January 9 Late 2024"]
[Site "https://www.chess.com"]
[Date "2024.01.10"]
[Round "3"]
[White "Agibileg, Uurtsaikh"]
[Black "Hoeffer, David"]
[Result "1-0"]
[Board "66"]
[TimeControl "180+1"]
[WhiteFideId "4901606"]
[BlackFideId "24606766"]
[WhiteElo "2720"]
[BlackElo "2440"]
[WhiteTeam "MGL"]
[BlackTeam "GER"]
[WhiteClock "0:00:42"]
[BlackClock "0:00:01"]

1. d4 {[%clk 0:03:00]}  d5 {[%clk 0:02:59]} 2. c4 {[%clk 0:03:00]}  c6 {[%clk 0:02:59]} 3. Nf3 {[%clk 0:02:59]}  Nf6 {[%clk 0:02:59]} 4. Nc3 {[%clk 0:02:58]}  e6 {[%clk 0:03:00]} 5. Bg5 {[%clk 0:02:58]}  Nbd7 {[%clk 0:02:57]} 6. cxd5 {[%clk 0:02:58]}  exd5 {[%clk 0:02:56]} 7. e3 {[%clk 0:02:58]}  h6 {[%clk 0:02:43]} 8. Bh4 {[%clk 0:02:57]}  Be7 {[%clk 0:02:43]} 9. Bd3 {[%clk 0:02:57]}  O-O {[%clk 0:02:43]} 10. O-O {[%clk 0:02:54]}  Re8 {[%clk 0:02:41]} 11. Qc2 {[%clk 0:02:53]}  Nf8 {[%clk 0:02:40]} 12. Rab1 {[%clk 0:02:49]}  Ne4 {[%clk 0:02:40]} 13. Bxe7 {[%clk 0:02:46]}  Qxe7 {[%clk 0:02:41]} 14. b4 {[%clk 0:02:34]}  a6 {[%clk 0:02:40]} 15. a4 {[%clk 0:02:34]}  f5 {[%clk 0:02:36]} 16. b5 {[%clk 0:02:32]}  axb5 {[%clk 0:02:36]} 17. axb5 {[%clk 0:02:32]}  Ng6 {[%clk 0:02:26]} 18. Na4 {[%clk 0:02:17]}  Rxa4 {[%clk 0:02:15]} 19. Qxa4 {[%clk 0:02:15]}  Nc3 {[%clk 0:02:15]} 20. Qc2 {[%clk 0:02:12]}  Nxb1 {[%clk 0:02:15]} 21. Rxb1 {[%clk 0:02:13]}  Bd7 {[%clk 0:02:04]} 22. bxc6 {[%clk 0:02:09]}  Bxc6 {[%clk 0:02:05]} 23. Bxf5 {[%clk 0:02:09]}  Nh4 {[%clk 0:02:00]} 24. Nxh4 {[%clk 0:01:57]}  Qxh4 {[%clk 0:02:01]} 25. h3 {[%clk 0:01:54]}  Qf6 {[%clk 0:01:58]} 26. Bd3 {[%clk 0:01:48]}  Rf8 {[%clk 0:01:52]} 27. Bb5 {[%clk 0:01:47]}  Qd6 {[%clk 0:01:41]} 28. Bxc6 {[%clk 0:01:46]}  bxc6 {[%clk 0:01:42]} 29. Rb6 {[%clk 0:01:43]}  Rc8 {[%clk 0:01:39]} 30. Rb7 {[%clk 0:01:42]}  Qf6 {[%clk 0:01:34]} 31. Ra7 {[%clk 0:01:23]}  Qe6 {[%clk 0:01:04]} 32. h4 {[%clk 0:01:21]}  Qf6 {[%clk 0:01:04]} 33. h5 {[%clk 0:01:17]}  Kf8 {[%clk 0:00:32]} 34. Qg6 {[%clk 0:01:15]}  Qxg6 {[%clk 0:00:32]} 35. hxg6 {[%clk 0:01:16]}  c5 {[%clk 0:00:33]} 36. dxc5 {[%clk 0:01:14]}  Rxc5 {[%clk 0:00:34]} 37. Rf7+ {[%clk 0:01:14]}  Kg8 {[%clk 0:00:33]} 38. Rd7 {[%clk 0:01:14]}  Kf8 {[%clk 0:00:31]} 39. f4 {[%clk 0:01:08]}  Ra5 {[%clk 0:00:23]} 40. Kf2 {[%clk 0:01:06]}  Ra6 {[%clk 0:00:22]} 41. f5 {[%clk 0:01:05]}  Ra5 {[%clk 0:00:23]} 42. g4 {[%clk 0:01:03]}  Rb5 {[%clk 0:00:20]} 43. Kf3 {[%clk 0:01:03]}  Ra5 {[%clk 0:00:19]} 44. Kf4 {[%clk 0:00:56]}  Ra4+ {[%clk 0:00:20]} 45. Kf3 {[%clk 0:00:51]}  Ra5 {[%clk 0:00:20]} 46. Rd8+ {[%clk 0:00:43]}  Ke7 {[%clk 0:00:19]} 47. Rg8 {[%clk 0:00:43]}  Kf6 {[%clk 0:00:19]} 48. Rf8+ {[%clk 0:00:44]}  Kg5 {[%clk 0:00:16]} 49. Rf7 {[%clk 0:00:44]}  Ra4 {[%clk 0:00:09]} 50. Rxg7 {[%clk 0:00:44]}  Rxg4 {[%clk 0:00:09]} 51. Rf7 {[%clk 0:00:43]}  Re4 {[%clk 0:00:04]} 52. g7 {[%clk 0:00:43]}  Kh5 {[%clk 0:00:01]} 53. g8=Q {[%clk 0:00:42]} 1-0